[Event "CZE Extraliga 2019-20"]
[Site "Czech Republic"]
[Date "2019.11.30"]
[Round "3.3"]
[White "Antoniewski, Rafal"]
[Black "Velicka, Petr"]
[Result "1/2-1/2"]
[ECO "A11"]
[WhiteElo "2497"]
[BlackElo "2420"]
[Annotator "ChessBase"]
[PlyCount "61"]
[EventDate "2019.09.15"]
[EventType "team-tourn"]
[EventCountry "CZE"]
[SourceTitle "playchess.com"]
[Source "ChessBase"]
[SourceQuality "1"]
[WhiteTeam "Frydek-Mistek"]
[BlackTeam "Ostrava"]
[TimeControl "40/5400+30:1800+30"]

1. c4 {[%emt 0:00:00]} c6 {[%emt 0:00:30]} 2. Nf3 {[%emt 0:00:19]} d5 {[%emt 0:00:18]} 3. e3 {[%emt 0:00:28]} Bg4 {[%emt 0:01:51]} 4. Qb3 {[%emt 0:04:45]} Qb6 {[%emt 0:00:24]} 5. Qxb6 {[%emt 0:01:17]} axb6 {[%emt 0:03:22]} 6. cxd5 {[%emt 0:00:08]} Bxf3 {[%emt 0:00:05]} 7. gxf3 {[%emt 0:00:08]} cxd5 {[%emt 0:00:04]} 8. Nc3 {[%emt 0:00:26]} e6 {[%emt 0:00:42]} 9. b3 {[%emt 0:02:10]} Nf6 {[%emt 0:03:02]} 10. Bb2 {[%emt 0:00:41]} Be7 {[%emt 0:12:57]} 11. Bb5+ {[%emt 0:12:21]} Nbd7 {[%emt 0:21:44]} 12. Rg1 {[%emt 0:07:16]} g6 {[%emt 0:03:54]} 13. Ke2 {[%emt 0:13:56]} O-O {[%emt 0:02:25]} 14. a3 {[%emt 0:08:31]} Rfc8 {[%emt 0:07:04]} 15. b4 {[%emt 0:04:07]} Kf8 {[%emt 0:02:40]} 16. f4 {[%emt 0:04:41]} Bd8 {[%emt 0:03:35]} 17. Rgc1 {[%emt 0:13:06]} Ke7 {[%emt 0:05:37]} 18. Bd3 {[%emt 0:10:24]} Ne8 {[%emt 0:02:34]} 19. Nb5 {[%emt 0:00:34]} Nd6 {[%emt 0:00:38]} 20. f3 {[%emt 0:01:35]} Nxb5 {[%emt 0:03:39]} 21. Bxb5 {[%emt 0:00:03]} Nf6 {[%emt 0:00:13]} 22. Bc3 {[%emt 0:05:47]} Ne8 {[%emt 0:01:12]} 23. a4 {[%emt 0:00:40]} Nd6 {[%emt 0:01:00]} 24. Bd3 {[%emt 0:00:01]} Kd7 {[%emt 0:00:52]} 25. Rcb1 {[%emt 0:03:28]} Nc4 {[%emt 0:02:52]} 26. Bd4 {[%emt 0:00:56]} Nd6 {[%emt 0:05:18]} 27. Rb3 {[%emt 0:01:17]} Nc4 {[%emt 0:01:44]} 28. Rbb1 {[%emt 0:01:07]} Nd6 {[%emt 0:00:25]} 29. e4 {[%emt 0:02:19]} Bc7 {[%emt 0:06:56]} 30. Rc1 {[%emt 0:01:17]} Bd8 {[%emt 0:00:32]} 31. Rcb1 {[%emt 0:00:53]} 1/2-1/2

[Event "CZE Extraliga 2019-20"]
[Site "Czech Republic"]
[Date "2019.11.30"]
[Round "3.3"]
[White "Malinovsky, Karel"]
[Black "Jakubowski, Krzysztof"]
[Result "0-1"]
[ECO "B90"]
[WhiteElo "2478"]
[BlackElo "2509"]
[Annotator "ChessBase"]
[PlyCount "76"]
[EventDate "2019.09.15"]
[EventType "team-tourn"]
[EventCountry "CZE"]
[SourceTitle "playchess.com"]
[Source "ChessBase"]
[SourceQuality "1"]
[WhiteTeam "Kromeriz"]
[BlackTeam "Poruba"]
[TimeControl "40/5400+30:1800+30"]

1. e4 {[%emt 0:00:00]} c5 {[%emt 0:00:00]} 2. Nf3 {[%emt 0:00:00]} d6 {[%emt 0:00:00]} 3. d4 {[%emt 0:00:00]} cxd4 {[%emt 0:00:01]} 4. Nxd4 {[%emt 0:00:00]} Nf6 {[%emt 0:00:09]} 5. Nc3 {[%emt 0:00:03]} a6 {[%emt 0:00:08]} 6. h3 {[%emt 0:00:45]} Nc6 {[%emt 0:01:02]} 7. g4 {[%emt 0:01:29]} Qb6 {[%emt 0:07:09]} 8. Nb3 {[%emt 0:04:11]} e6 {[%emt 0:00:18]} 9. g5 {[%emt 0:05:49]} Nd7 {[%emt 0:00:16]} 10. Be3 {[%emt 0:00:33]} Qc7 {[%emt 0:00:11]} 11. f4 {[%emt 0:02:01]} b5 {[%emt 0:01:40]} 12. a4 {[%emt 0:10:34]} b4 {[%emt 0:03:39]} 13. Ne2 {[%emt 0:00:36]} Be7 {[%emt 0:01:42]} 14. Bg2 {[%emt 0:01:28]} h6 {[%emt 0:06:26]} 15. h4 {[%emt 0:08:19]} Bb7 {[%emt 0:03:23]} 16. g6 {[%emt 0:07:34]} fxg6 {[%emt 0:13:54]} 17. Ned4 {[%emt 0:02:08]} Nd8 {[%emt 0:05:47]} 18. Qg4 {[%emt 0:07:39]} Nf8 {[%emt 0:05:46]} 19. O-O {[%emt 0:15:20]} h5 {[%emt 0:02:29]} 20. Qg3 {[%emt 0:04:00]} Bf6 {[%emt 0:01:43]} 21. Rae1 {[%emt 0:05:17]} Qe7 {[%emt 0:06:31]} 22. Nf3 {[%emt 0:06:42]} Bxb2 {[%emt 0:03:49]} 23. e5 {[%emt 0:03:36]} Rc8 {[%emt 0:05:18]} 24. Ng5 {[%emt 0:06:12]} d5 {[%emt 0:05:30]} 25. Bh3 {[%emt 0:01:18]} Rxc2 {[%emt 0:03:26]} 26. Nd4 {[%emt 0:01:28]} Bxd4 {[%emt 0:03:48]} 27. Bxd4 {[%emt 0:00:05]} Rc4 {[%emt 0:00:08]} 28. Qd3 {[%emt 0:02:24]} a5 {[%emt 0:02:23]} 29. Bb6 {[%emt 0:01:36]} Nf7 {[%emt 0:00:29]} 30. Bg2 {[%emt 0:02:33]} Ba6 {[%emt 0:03:29]} 31. Qd2 {[%emt 0:01:05]} Nd7 {[%emt 0:01:09]} 32. Nxf7 {[%emt 0:00:35]} Kxf7 {[%emt 0:01:51]} 33. Be3 {[%emt 0:00:28]} Rhc8 {[%emt 0:00:26]} 34. Rf2 {[%emt 0:00:37]} Nf8 {[%emt 0:03:26]} 35. f5 {[%emt 0:00:32]} gxf5 {[%emt 0:00:27]} 36. Bg5 {[%emt 0:00:21]} Qa7 {[%emt 0:00:19]} 37. Kh1 {[%emt 0:00:34]} Qd4 {[%emt 0:01:29]} 38. Qe2 {[%emt 0:00:28]} Qxh4+ {[%emt 0:00:38]} 0-1

[Event "CZE Extraliga 2019-20"]
[Site "Czech Republic"]
[Date "2019.11.30"]
[Round "3.3"]
[White "Druska, Juraj"]
[Black "Kraus, Tomas"]
[Result "1/2-1/2"]
[ECO "C47"]
[WhiteElo "2472"]
[BlackElo "2473"]
[Annotator "RC"]
[PlyCount "99"]
[EventDate "2019.09.15"]
[EventType "team-tourn"]
[EventCountry "CZE"]
[SourceTitle "playchess.com"]
[Source "ChessBase"]
[SourceQuality "1"]
[WhiteTeam "Siesta Solution Unichess"]
[BlackTeam "Turnov"]
[TimeControl "40/5400+30:1800+30"]

1. e4 {[%emt 0:00:00]} e5 {[%emt 0:00:00]} 2. Nf3 {[%emt 0:00:00]} Nc6 {[%emt 0:00:00]} 3. Nc3 {[%emt 0:01:55]} Nf6 {[%emt 0:00:23]} 4. d4 {[%emt 0:00:06]} exd4 {[%emt 0:00:21]} 5. Nxd4 {[%emt 0:00:08]} Bb4 {[%emt 0:00:05]} 6. Nxc6 {[%emt 0:00:09]} bxc6 {[%emt 0:00:05]} 7. Bd3 {[%emt 0:00:05]} d5 {[%emt 0:01:04]} 8. exd5 {[%emt 0:00:08]} Qe7+ {[%emt 0:00:25]} 9. Qe2 {[%emt 0:00:07]} Qxe2+ {[%emt 0:00:07]} 10. Kxe2 {[%emt 0:00:04]} Nxd5 {[%emt 0:00:10]} 11. Nxd5 {[%emt 0:22:43]} cxd5 {[%emt 0:00:47]} 12. Bb5+ {[%emt 0:00:14]} Bd7 {[%emt 0:01:15]} 13. Bxd7+ {[%emt 0:01:23]} Kxd7 {[%emt 0:00:05]} 14. Rd1 {[%emt 0:00:05]} Kc6 {[%emt 0:03:38]} 15. Be3 {[%emt 0:03:17]} Rhe8 {[%emt 0:03:15]} 16. c4 {[%emt 0:29:33]} dxc4 {[%emt 0:00:58]} 17. Rac1 {[%emt 0:04:31]} c3 {[%emt 0:27:10]} 18. a3 {[%emt 0:01:19]} Bd6 {[%emt 0:00:22]} 19. Rxc3+ {[%emt 0:00:12]} Kd7 {[%emt 0:00:43]} 20. Rd5 {[%emt 0:07:50]} Re5 {[%emt 0:02:13]} 21. Rxe5 {[%emt 0:04:43]} Bxe5 {[%emt 0:00:07]} 22. Rd3+ {[%emt 0:06:39]} Kc6 {[%emt 0:07:23]} 23. Bd4 {[%emt 0:00:20]} Bxd4 {[%emt 0:02:09]} 24. Rxd4 {[%emt 0:00:05]} Re8+ {[%emt 0:01:56]} 25. Kd3 {[%emt 0:00:07]} Re5 {[%emt 0:11:13]} 26. Rc4+ {[%emt 0:00:58]} Kd6 {[%emt 0:03:41]} 27. Rd4+ {[%emt 0:03:02]} Kc6 {[%emt 0:01:08]} 28. Rf4 {[%emt 0:01:04]} f6 {[%emt 0:05:01]} 29. Re4 {[%emt 0:01:03]} Rd5+ {[%emt 0:01:55]} 30. Kc3 {[%emt 0:00:27]} Rg5 {[%emt 0:11:13]} 31. g4 {[%emt 0:00:39]} h5 {[%emt 0:01:05]} 32. h3 {[%emt 0:00:31]} hxg4 {[%emt 0:00:59]} 33. hxg4 {[%emt 0:00:22]} f5 {[%emt 0:01:50]} 34. Rc4+ {[%emt 0:01:04]} Kb6 {[%emt 0:00:33]} 35. f3 {[%emt 0:01:36]} fxg4 {[%emt 0:01:57]} 36. fxg4 {[%emt 0:00:05]} a5 {[%emt 0:03:55]} 37. Kd3 {[%emt 0:01:03]} Rb5 {[%emt 0:03:10]} 38. Kc3 {[%emt 0:00:48]} Re5 {[%emt 0:02:13]} 39. Rf4 {[%emt 0:05:41]} Re3+ {[%emt 0:03:03]} 40. Kc4 {[%emt 0:00:08]} Rg3 {[%emt 0:01:11]} 41. a4 {[%emt 0:10:53]} Rg1 {[%emt 0:06:11]} 42. b4 {[%emt 0:01:12]} Rc1+ {[%emt 0:07:48]} 43. Kd5 {[%emt 0:04:29]} axb4 {[%emt 0:05:19]} 44. Rxb4+ {[%emt 0:00:11]} Ka5 {[%emt 0:00:11]} 45. Re4 {[%emt 0:00:49]} g5 {[%emt 0:01:22]} 46. Ke6 {[%emt 0:12:50]} Rf1 {[%emt 0:01:14]} 47. Ke5 {[%emt 0:03:55]} Ra1 {[%emt 0:01:38]} 48. Rc4 {[%emt 0:01:38]} Rxa4 {[%emt 0:00:19]} 49. Rxc7 {[%emt 0:00:05]} Rxg4 {[%emt 0:00:04]} 50. Rg7 {[%emt 0:00:06]} 1/2-1/2

[Event "CZE Extraliga 2019-20"]
[Site "Czech Republic"]
[Date "2019.11.30"]
[Round "3.3"]
[White "Carlsson, Pontus"]
[Black "Shevchenko, Kirill"]
[Result "1-0"]
[ECO "B50"]
[WhiteElo "2447"]
[BlackElo "2541"]
[Annotator "ChessBase"]
[PlyCount "93"]
[EventDate "2019.09.15"]
[EventType "team-tourn"]
[EventCountry "CZE"]
[SourceTitle "playchess.com"]
[Source "ChessBase"]
[SourceQuality "1"]
[WhiteTeam "Praha"]
[BlackTeam "Pardubice"]
[TimeControl "40/5400+30:1800+30"]

1. e4 {[%emt 0:05:54]} c5 {[%emt 0:00:00]} 2. Nf3 {[%emt 0:00:35]} d6 {[%emt 0:00:00]} 3. Bb5+ {[%emt 0:14:58]} Nd7 {[%emt 0:00:27]} 4. d4 {[%emt 0:00:10]} cxd4 {[%emt 0:00:11]} 5. Qxd4 {[%emt 0:00:06]} a6 {[%emt 0:00:25]} 6. Bxd7+ {[%emt 0:00:31]} Bxd7 {[%emt 0:00:07]} 7. Nc3 {[%emt 0:00:48]} Rc8 {[%emt 0:02:35]} 8. O-O {[%emt 0:00:56]} e5 {[%emt 0:05:26]} 9. Qd3 {[%emt 0:00:06]} h6 {[%emt 0:01:22]} 10. Nd2 {[%emt 0:00:06]} Be6 {[%emt 0:08:20]} 11. Rd1 {[%emt 0:00:47]} Nf6 {[%emt 0:02:01]} 12. Nf1 {[%emt 0:02:31]} Qc7 {[%emt 0:26:08]} 13. Ne3 {[%emt 0:01:53]} Be7 {[%emt 0:00:23]} 14. Bd2 {[%emt 0:04:44]} Qc5 {[%emt 0:03:46]} 15. Kh1 {[%emt 0:17:36]} O-O {[%emt 0:05:28]} 16. f3 {[%emt 0:07:22]} b5 {[%emt 0:11:36]} 17. a4 {[%emt 0:06:51]} b4 {[%emt 0:09:23]} 18. Ncd5 {[%emt 0:00:31]} Nxd5 {[%emt 0:00:30]} 19. exd5 {[%emt 0:00:14]} Bd7 {[%emt 0:00:02]} 20. b3 {[%emt 0:06:33]} Bg5 {[%emt 0:11:14]} 21. Nc4 {[%emt 0:00:51]} f5 {[%emt 0:01:56]} 22. Bxg5 {[%emt 0:17:26]} hxg5 {[%emt 0:00:03]} 23. Qf1 {[%emt 0:01:40]} f4 {[%emt 0:01:21]} 24. Qg1 {[%emt 0:00:32]} Qxg1+ {[%emt 0:04:20]} 25. Kxg1 {[%emt 0:00:07]} Rxc4 {[%emt 0:00:08]} 26. bxc4 {[%emt 0:00:09]} Rc8 {[%emt 0:00:02]} 27. a5 {[%emt 0:02:48]} Rxc4 {[%emt 0:00:06]} 28. Rdb1 {[%emt 0:02:07]} g4 {[%emt 0:03:33]} 29. fxg4 {[%emt 0:03:33]} e4 {[%emt 0:01:41]} 30. h3 {[%emt 0:01:05]} Bb5 {[%emt 0:01:39]} 31. Rb2 {[%emt 0:00:23]} e3 {[%emt 0:00:41]} 32. Rab1 {[%emt 0:00:55]} g5 {[%emt 0:00:04]} 33. h4 {[%emt 0:00:29]} gxh4 {[%emt 0:00:38]} 34. Rxb4 {[%emt 0:01:00]} h3 {[%emt 0:00:01]} 35. Rxc4 {[%emt 0:00:38]} Bxc4 {[%emt 0:00:00]} 36. Rd1 {[%emt 0:00:32]} hxg2 {[%emt 0:00:58]} 37. Kxg2 {[%emt 0:00:21]} Be2 {[%emt 0:00:33]} 38. Rf1 {[%emt 0:00:40]} Bxf1+ {[%emt 0:00:18]} 39. Kxf1 {[%emt 0:00:01]} f3 {[%emt 0:01:18]} 40. c4 {[%emt 0:00:15]} f2 {[%emt 0:00:44]} 41. g5 {[%emt 0:14:12]} Kf7 {[%emt 0:01:52]} 42. c5 {[%emt 0:07:23]} dxc5 {[%emt 0:01:00]} 43. d6 {[%emt 0:00:23]} c4 {[%emt 0:01:39]} 44. d7 {[%emt 0:08:07]} Ke7 {[%emt 0:00:05]} 45. g6 {[%emt 0:00:12]} c3 {[%emt 0:00:32]} 46. g7 {[%emt 0:00:55]} c2 {[%emt 0:00:03]} 47. d8=Q+ {[%emt 0:00:11]} 1-0

[Event "CZE Extraliga 2019-20"]
[Site "Czech Republic"]
[Date "2019.11.30"]
[Round "3.4"]
[White "Heberla, Bartlomiej"]
[Black "Oral, Tomas"]
[Result "1-0"]
[ECO "B46"]
[WhiteElo "2544"]
[BlackElo "2509"]
[Annotator "ChessBase"]
[PlyCount "81"]
[EventDate "2019.09.15"]
[EventType "team-tourn"]
[EventCountry "CZE"]
[SourceTitle "playchess.com"]
[Source "ChessBase"]
[SourceQuality "1"]
[WhiteTeam "Brno"]
[BlackTeam "Lysa nad Labem"]
[TimeControl "40/5400+30:1800+30"]

1. e4 {[%emt 0:00:00]} c5 {[%emt 0:00:00]} 2. Nf3 {[%emt 0:00:00]} Nc6 {[%emt 0:00:00]} 3. Nc3 {[%emt 0:00:00]} e6 {[%emt 0:00:04]} 4. d4 {[%emt 0:00:00]} cxd4 {[%emt 0:00:06]} 5. Nxd4 {[%emt 0:00:00]} Qc7 {[%emt 0:00:09]} 6. f4 {[%emt 0:00:00]} a6 {[%emt 0:01:32]} 7. Nxc6 {[%emt 0:00:07]} bxc6 {[%emt 0:00:49]} 8. e5 {[%emt 0:00:11]} d5 {[%emt 0:05:14]} 9. exd6 {[%emt 0:00:07]} Bxd6 {[%emt 0:00:57]} 10. Ne4 {[%emt 0:00:03]} Be7 {[%emt 0:12:51]} 11. Bd3 {[%emt 0:00:27]} Nf6 {[%emt 0:02:44]} 12. O-O {[%emt 0:00:09]} Bb7 {[%emt 0:16:16]} 13. Ng5 {[%emt 0:02:29]} h6 {[%emt 0:03:17]} 14. Nf3 {[%emt 0:00:16]} O-O {[%emt 0:00:32]} 15. Qe2 {[%emt 0:03:47]} c5 {[%emt 0:01:51]} 16. Ne5 {[%emt 0:08:20]} Nd5 {[%emt 0:07:43]} 17. a3 {[%emt 0:17:23]} Bf6 {[%emt 0:15:32]} 18. Bd2 {[%emt 0:01:41]} Ne7 {[%emt 0:01:07]} 19. Rae1 {[%emt 0:13:13]} Nf5 {[%emt 0:01:40]} 20. Nc4 {[%emt 0:05:45]} Bd5 {[%emt 0:08:34]} 21. b3 {[%emt 0:09:49]} Qb7 {[%emt 0:07:44]} 22. Qg4 {[%emt 0:05:12]} Rad8 {[%emt 0:02:37]} 23. Ba5 {[%emt 0:02:53]} Bxc4 {[%emt 0:01:34]} 24. Bxc4 {[%emt 0:15:11]} Bd4+ {[%emt 0:00:24]} 25. Kh1 {[%emt 0:00:07]} Ne3 {[%emt 0:00:24]} 26. Rxe3 {[%emt 0:03:53]} Bxe3 {[%emt 0:00:04]} 27. Bxd8 {[%emt 0:00:08]} Rxd8 {[%emt 0:00:02]} 28. f5 {[%emt 0:00:08]} exf5 {[%emt 0:02:04]} 29. Qxf5 {[%emt 0:02:42]} Rf8 {[%emt 0:06:38]} 30. Qe5 {[%emt 0:04:59]} Bd4 {[%emt 0:00:57]} 31. Rxf7 {[%emt 0:00:14]} Bxe5 {[%emt 0:01:16]} 32. Rxb7+ {[%emt 0:00:07]} Kh8 {[%emt 0:00:35]} 33. Bxa6 {[%emt 0:00:52]} Ra8 {[%emt 0:00:36]} 34. Rb6 {[%emt 0:00:14]} Rd8 {[%emt 0:00:28]} 35. Bd3 {[%emt 0:00:45]} c4 {[%emt 0:00:20]} 36. bxc4 {[%emt 0:00:12]} Ra8 {[%emt 0:00:46]} 37. Rb5 {[%emt 0:02:17]} Rxa3 {[%emt 0:00:25]} 38. g3 {[%emt 0:00:14]} Bc7 {[%emt 0:00:33]} 39. Rb7 {[%emt 0:00:09]} Bd6 {[%emt 0:00:30]} 40. c5 {[%emt 0:00:22]} Bf8 {[%emt 0:00:31]} 41. Rb8 {[%emt 0:30:16]} 1-0

[Event "CZE Extraliga 2019-20"]
[Site "Czech Republic"]
[Date "2019.11.30"]
[Round "3.4"]
[White "Cvek, Robert"]
[Black "Mazur, Stefan"]
[Result "1/2-1/2"]
[ECO "A05"]
[WhiteElo "2517"]
[BlackElo "2445"]
[Annotator "ChessBase"]
[PlyCount "67"]
[EventDate "2019.09.15"]
[EventType "team-tourn"]
[EventCountry "CZE"]
[SourceTitle "playchess.com"]
[Source "ChessBase"]
[SourceQuality "1"]
[WhiteTeam "Poruba"]
[BlackTeam "Kromeriz"]
[TimeControl "40/5400+30:1800+30"]

1. Nf3 {[%emt 0:00:00]} Nf6 {[%emt 0:00:00]} 2. g3 {[%emt 0:01:48]} g6 {[%emt 0:00:00]} 3. Bg2 {[%emt 0:03:47]} Bg7 {[%emt 0:00:17]} 4. O-O {[%emt 0:00:09]} O-O {[%emt 0:00:16]} 5. d4 {[%emt 0:00:06]} d6 {[%emt 0:00:13]} 6. b3 {[%emt 0:00:46]} b6 {[%emt 0:02:15]} 7. Bb2 {[%emt 0:00:39]} Bb7 {[%emt 0:00:48]} 8. Nbd2 {[%emt 0:03:36]} c5 {[%emt 0:03:41]} 9. c4 {[%emt 0:01:53]} cxd4 {[%emt 0:03:47]} 10. Bxd4 {[%emt 0:00:06]} Nc6 {[%emt 0:01:36]} 11. Bb2 {[%emt 0:00:33]} d5 {[%emt 0:07:05]} 12. Rc1 {[%emt 0:18:35]} Rc8 {[%emt 0:01:53]} 13. Ne5 {[%emt 0:06:32]} Nxe5 {[%emt 0:05:59]} 14. Bxe5 {[%emt 0:01:27]} Qd7 {[%emt 0:01:18]} 15. cxd5 {[%emt 0:18:53]} Rxc1 {[%emt 0:05:40]} 16. Qxc1 {[%emt 0:02:14]} Rc8 {[%emt 0:00:22]} 17. Qb2 {[%emt 0:02:10]} Bxd5 {[%emt 0:00:44]} 18. Bxd5 {[%emt 0:00:26]} Qxd5 {[%emt 0:00:06]} 19. Nc4 {[%emt 0:00:33]} Nh5 {[%emt 0:09:57]} 20. Bxg7 {[%emt 0:00:08]} Nxg7 {[%emt 0:00:06]} 21. Ne3 {[%emt 0:00:12]} Qe4 {[%emt 0:15:10]} 22. Rd1 {[%emt 0:02:35]} h5 {[%emt 0:07:10]} 23. Rd4 {[%emt 0:11:25]} Rc1+ {[%emt 0:05:00]} 24. Qxc1 {[%emt 0:00:06]} Qxd4 {[%emt 0:00:04]} 25. Qc8+ {[%emt 0:00:29]} Kh7 {[%emt 0:00:09]} 26. Qf8 {[%emt 0:03:46]} Qa1+ {[%emt 0:04:11]} 27. Kg2 {[%emt 0:01:04]} Qxa2 {[%emt 0:01:01]} 28. Qxf7 {[%emt 0:00:06]} Qxe2 {[%emt 0:01:14]} 29. Qxe7 {[%emt 0:00:04]} Qd3 {[%emt 0:01:25]} 30. Qxa7 {[%emt 0:04:11]} Qe4+ {[%emt 0:03:55]} 31. Kg1 {[%emt 0:00:05]} Qb1+ {[%emt 0:00:12]} 32. Kg2 {[%emt 0:00:05]} Qe4+ {[%emt 0:01:24]} 33. Kg1 {[%emt 0:01:09]} Qb1+ {[%emt 0:00:25]} 34. Kg2 {[%emt 0:11:43]} 1/2-1/2

[Event "CZE Extraliga 2019-20"]
[Site "Czech Republic"]
[Date "2019.11.30"]
[Round "3.4"]
[White "Vykouk, Jan"]
[Black "Bernasek, Jan"]
[Result "1/2-1/2"]
[ECO "B06"]
[WhiteElo "2477"]
[BlackElo "2490"]
[Annotator "ChessBase"]
[PlyCount "110"]
[EventDate "2019.09.15"]
[EventType "team-tourn"]
[EventCountry "CZE"]
[SourceTitle "playchess.com"]
[Source "ChessBase"]
[SourceQuality "1"]
[WhiteTeam "Turnov"]
[BlackTeam "Siesta Solution Unichess"]
[TimeControl "40/5400+30:1800+30"]

1. e4 {[%emt 0:00:00]} g6 {[%emt 0:00:00]} 2. d4 {[%emt 0:00:00]} Bg7 {[%emt 0:00:00]} 3. Nc3 {[%emt 0:00:00]} d6 {[%emt 0:00:08]} 4. Be3 {[%emt 0:00:00]} a6 {[%emt 0:00:47]} 5. Qd2 {[%emt 0:00:00]} b5 {[%emt 0:00:08]} 6. h4 {[%emt 0:00:12]} Nf6 {[%emt 0:01:28]} 7. f3 {[%emt 0:00:07]} h5 {[%emt 0:00:14]} 8. O-O-O {[%emt 0:00:08]} c6 {[%emt 0:01:33]} 9. Kb1 {[%emt 0:00:57]} Nbd7 {[%emt 0:01:18]} 10. e5 {[%emt 0:00:58]} Nd5 {[%emt 0:04:05]} 11. exd6 {[%emt 0:02:08]} Nxe3 {[%emt 0:18:30]} 12. Qxe3 {[%emt 0:00:06]} Nf6 {[%emt 0:00:32]} 13. dxe7 {[%emt 0:00:18]} Qxe7 {[%emt 0:00:10]} 14. Qxe7+ {[%emt 0:00:35]} Kxe7 {[%emt 0:00:05]} 15. Bd3 {[%emt 0:00:17]} Rd8 {[%emt 0:03:07]} 16. Nge2 {[%emt 0:00:41]} Kf8 {[%emt 0:01:26]} 17. Be4 {[%emt 0:13:34]} Rd6 {[%emt 0:03:50]} 18. a3 {[%emt 0:03:06]} Be6 {[%emt 0:07:06]} 19. Bd3 {[%emt 0:05:25]} Rad8 {[%emt 0:05:50]} 20. Nf4 {[%emt 0:02:07]} Bc8 {[%emt 0:06:15]} 21. Nce2 {[%emt 0:00:11]} Bh6 {[%emt 0:02:59]} 22. c3 {[%emt 0:02:21]} Re8 {[%emt 0:03:00]} 23. Rhe1 {[%emt 0:06:09]} Rd7 {[%emt 0:03:34]} 24. Rf1 {[%emt 0:07:30]} Kg7 {[%emt 0:04:27]} 25. g3 {[%emt 0:24:48]} Rde7 {[%emt 0:04:18]} 26. Rf2 {[%emt 0:00:26]} Re3 {[%emt 0:02:13]} 27. Ka1 {[%emt 0:01:36]} R3e7 {[%emt 0:12:10]} 28. Ng2 {[%emt 0:04:04]} Nd5 {[%emt 0:02:56]} 29. Ng1 {[%emt 0:04:35]} Ne3 {[%emt 0:05:11]} 30. Nxe3 {[%emt 0:00:40]} Bxe3 {[%emt 0:00:08]} 31. Rff1 {[%emt 0:03:36]} Be6 {[%emt 0:01:02]} 32. Rde1 {[%emt 0:05:10]} Bd5 {[%emt 0:01:20]} 33. Nh3 {[%emt 0:00:09]} f6 {[%emt 0:01:15]} 34. Re2 {[%emt 0:02:43]} Kh6 {[%emt 0:03:30]} 35. Kb1 {[%emt 0:01:06]} g5 {[%emt 0:00:55]} 36. hxg5+ {[%emt 0:01:29]} fxg5 {[%emt 0:00:00]} 37. Kc2 {[%emt 0:01:09]} c5 {[%emt 0:00:58]} 38. dxc5 {[%emt 0:01:03]} Bxc5 {[%emt 0:00:02]} 39. Rxe7 {[%emt 0:00:18]} Rxe7 {[%emt 0:00:02]} 40. Be4 {[%emt 0:03:36]} Bxe4+ {[%emt 0:02:29]} 41. fxe4 {[%emt 0:30:05]} Rxe4 {[%emt 0:30:09]} 42. Rf6+ {[%emt 0:00:39]} Kg7 {[%emt 0:00:12]} 43. Rf5 {[%emt 0:03:26]} Be7 {[%emt 0:00:00]} 44. Nxg5 {[%emt 0:00:00]} Re2+ {[%emt 0:00:00]} 45. Kd3 {[%emt 0:00:00]} Rxb2 {[%emt 0:00:00]} 46. Ne6+ {[%emt 0:00:00]} Kg6 {[%emt 0:00:00]} 47. Rd5 {[%emt 0:00:00]} Bxa3 {[%emt 0:00:00]} 48. Nf4+ {[%emt 0:00:00]} Kf7 {[%emt 0:00:00]} 49. Rxh5 {[%emt 0:00:00]} b4 {[%emt 0:00:00]} 50. cxb4 {[%emt 0:00:00]} Bxb4 {[%emt 0:00:00]} 51. Rh7+ {[%emt 0:00:00]} Kg8 {[%emt 0:00:00]} 52. Ra7 {[%emt 0:00:00]} Rb3+ {[%emt 0:00:00]} 53. Kc4 {[%emt 0:00:00]} Rxg3 {[%emt 0:00:00]} 54. Kxb4 {[%emt 0:00:00]} Rg4 {[%emt 0:00:00]} 55. Rxa6 {[%emt 0:00:00]} Rxf4+ {[%emt 0:00:00]} 1/2-1/2